fUST/lending_fUST_20250606
["ID","MTS","AMOUNT","RATE_DAILY","PERIOD"]
[364709122,1749214248614,-338.05286985,0.00020821,2]
[364709123,1749214248624,-440.0,0.00020821,2]
[364709124,1749214248634,-440.0,0.00020821,2]
[364709125,1749214248645,-440.0,0.00020821,2]
[364709126,1749214248654,-440.0,0.00020821,2]
[364709127,1749214248665,-5859.32,0.00020821,2]
[364709128,1749214248675,-657.96,0.00020821,2]
[364709129,1749214248684,-440.0,0.00020821,2]
[364709130,1749214248693,-440.0,0.00020821,2]
[364709131,1749214248703,-863.5,0.00020821,2]
[364709132,1749214248714,-440.0,0.00020821,2]
[364709133,1749214248724,-440.0,0.00020821,2]
[364709134,1749214248734,-440.0,0.00020821,2]
[364709135,1749214248744,-911.46,0.00020821,2]
[364709136,1749214248753,-1062.11,0.00020821,2]
[364709137,1749214248763,-440.0,0.00020821,2]
[364709138,1749214248772,-966.81,0.00020821,2]
[364709139,1749214248782,-440.0,0.00020821,2]
[364709140,1749214248793,-440.0,0.00020821,2]
[364709141,1749214248803,-440.0,0.00020821,2]
[364709142,1749214248813,-370.0,0.00020821,2]
[364709143,1749214248824,-4387.44,0.00020821,2]
[364709144,1749214248834,-440.0,0.00020821,2]
[364709145,1749214248844,-440.0,0.00020821,2]
[364709146,1749214248854,-440.0,0.00020821,2]
[364709147,1749214248864,-440.0,0.00020821,2]
[364709148,1749214248874,-440.0,0.00020821,2]
[364709149,1749214248884,-1842.31,0.00020821,2]
[364709150,1749214248895,-177.37881144,0.00020857,2]
[364709151,1749214248905,-420.0,0.00020892,2]
[364709152,1749214248915,-151.0,0.000209,3]
[364709153,1749214248925,-1676.48981907,0.000209,4]
[364709154,1749214248935,-1680.0,0.00020993,2]
[364709155,1749214248946,-151.0,0.00021,4]
[364709156,1749214248955,-1676.48981906,0.00021038,4]
[364709157,1749214248965,-440.0,0.00021095,2]
[364709158,1749214248975,-440.0,0.00021095,2]
[364709159,1749214248986,-440.0,0.00021095,2]
[364709160,1749214248996,-440.0,0.00021095,2]
[364709161,1749214249006,-443.77,0.00021095,2]
[364709162,1749214249016,-440.0,0.00021095,2]
[364709163,1749214249026,-440.0,0.00021095,2]
[364709164,1749214249037,-440.0,0.00021095,2]
[364709165,1749214249047,-440.0,0.00021095,2]
[364709166,1749214249056,-440.0,0.00021095,2]
[364709167,1749214249067,-440.0,0.00021095,2]
[364709168,1749214249079,-440.0,0.00021095,2]
[364709169,1749214249089,-440.0,0.00021095,2]
[364709170,1749214249099,-440.0,0.00021095,2]
[364709171,1749214249109,-457.32,0.00021095,2]
[364709172,1749214249119,-440.0,0.00021095,2]
[364709173,1749214249130,-440.0,0.00021095,2]
[364709174,1749214249140,-440.0,0.00021095,2]
[364709175,1749214249150,-1619.82,0.00021095,2]
[364709176,1749214249160,-1008.18,0.00021095,2]
[364709177,1749214249170,-446.12927608,0.00021095,2]
[364709178,1749214249179,-2671.63,0.00021095,2]
[364709179,1749214249189,-1751.18,0.00021095,2]
[364709180,1749214249198,-583.76,0.00021095,2]
[364709181,1749214249208,-440.0,0.00021095,2]
[364709182,1749214249218,-440.0,0.00021095,2]
[364709183,1749214249228,-700.1,0.00021095,2]
[364709184,1749214249240,-605.44,0.00021095,2]
[364709185,1749214249250,-460.0,0.00021095,2]
[364709186,1749214249259,-2910.28,0.00021095,2]
[364709187,1749214249269,-2253.61,0.00021095,2]
[364709188,1749214249279,-440.0,0.00021095,2]
[364709189,1749214249288,-440.0,0.00021095,2]
[364709190,1749214249298,-440.0,0.00021095,2]
[364709191,1749214249309,-440.0,0.00021095,2]
[364709192,1749214249321,-370.0,0.00021095,2]
[364709193,1749214249332,-360.0,0.00021095,2]
[364709194,1749214249341,-440.0,0.00021095,2]
[364709195,1749214249351,-561.53,0.00021095,2]
[364709196,1749214249361,-360.0,0.00021095,2]
[364709197,1749214249371,-988.31,0.00021095,2]
[364709198,1749214249381,-1039.65,0.00021095,2]
[364709199,1749214249390,-360.0,0.00021095,2]
[364709200,1749214249401,-440.0,0.00021095,2]
[364709201,1749214249410,-469.44891595,0.00021095,2]
[364709202,1749214249420,-440.0,0.00021095,2]
[364709203,1749214249430,-440.0,0.00021095,2]
[364709204,1749214249440,-440.0,0.00021095,2]
[364709205,1749214249450,-5859.32,0.00021095,2]
[364709206,1749214249459,-657.96,0.00021095,2]
[364709207,1749214249469,-440.0,0.00021095,2]
[364709208,1749214249479,-440.0,0.00021095,2]
[364709209,1749214249489,-863.5,0.00021095,2]
[364709210,1749214249498,-440.0,0.00021095,2]
[364709211,1749214249508,-440.0,0.00021095,2]
[364709212,1749214249518,-440.0,0.00021095,2]
[364709213,1749214249527,-911.46,0.00021095,2]
[364709214,1749214249537,-1062.11,0.00021095,2]
[364709215,1749214249547,-440.0,0.00021095,2]
[364709216,1749214249557,-966.81,0.00021095,2]
[364709217,1749214249566,-440.0,0.00021095,2]
[364709218,1749214249582,-440.0,0.00021095,2]
[364709219,1749214249594,-440.0,0.00021095,2]
[364709220,1749214249604,-4387.44,0.00021095,2]
[364709221,1749214249614,-440.0,0.00021095,2]
[364709222,1749214249624,-440.0,0.00021095,2]
[364709223,1749214249634,-440.0,0.00021095,2]
[364709224,1749214249644,-440.0,0.00021095,2]
[364709225,1749214249653,-440.0,0.00021095,2]
[364709226,1749214249664,-1842.31,0.00021095,2]
[364709227,1749214249674,-217.59558088,0.00021117,2]
[364709228,1749214249684,-1676.48981906,0.00021176,4]
[364709229,1749214249694,-1676.48981906,0.00021314,5]
[364709230,1749214249703,-504.75562938,0.00021357,2]
[364709231,1749214249713,-500.0,0.00021357,2]
[364709232,1749214249722,-500.0,0.00021357,2]
[364709233,1749214249735,-500.0,0.00021357,2]
[364709234,1749214249744,-500.0,0.00021357,2]
[364709235,1749214249754,-500.0,0.00021357,2]
[364709236,1749214249763,-600.0,0.00021357,2]
[364709237,1749214249773,-500.0,0.00021357,2]
[364709238,1749214249783,-240.18160444,0.00021357,2]
[364709239,1749214249793,-502.86158718,0.00021357,2]
[364709240,1749214249803,-500.0,0.00021357,2]
[364709241,1749214249813,-500.0,0.00021357,2]
[364709242,1749214249823,-423.43598683,0.00021357,2]
[364709243,1749214249833,-194.45,0.0002136,2]
[364709244,1749214249843,-195.36693875,0.0002136,2]
[364709245,1749214249853,-506.14491247,0.0002136,2]
[364709246,1749214249864,-1000.0,0.00021364,2]
[364709247,1749214249874,-440.0,0.00021369,2]
[364709248,1749214249884,-440.0,0.00021369,2]
[364709249,1749214249894,-561.32453295,0.00021369,2]
[364709250,1749214249904,-440.0,0.00021369,2]
[364709251,1749214249914,-443.77,0.00021369,2]
[364709252,1749214249924,-350.0,0.00021369,2]
[364709253,1749214249934,-360.0,0.00021369,2]
[364709254,1749214249944,-440.0,0.00021369,2]
[364709255,1749214249954,-440.0,0.00021369,2]
[364709256,1749214249964,-440.0,0.00021369,2]
[364709257,1749214249974,-440.0,0.00021369,2]
[364709258,1749214249985,-440.0,0.00021369,2]
[364709259,1749214249996,-440.0,0.00021369,2]
[364709260,1749214250006,-286.72314585,0.00021369,2]
[364709261,1749214250016,-457.32,0.00021369,2]
[364709262,1749214250027,-440.0,0.00021369,2]
[364709263,1749214250037,-440.0,0.00021369,2]
[364709264,1749214250046,-440.0,0.00021369,2]
[364709265,1749214250056,-1619.82,0.00021369,2]
[364709266,1749214250069,-1008.18,0.00021369,2]
[364709267,1749214250079,-2671.63,0.00021369,2]
[364709268,1749214250089,-1751.18,0.00021369,2]
[364709269,1749214250099,-583.76,0.00021369,2]
[364709270,1749214250109,-440.0,0.00021369,2]
[364709271,1749214250119,-440.0,0.00021369,2]
[364709272,1749214250129,-700.1,0.00021369,2]
[364709273,1749214250139,-605.44,0.00021369,2]
[364709274,1749214250149,-2910.28,0.00021369,2]
[364709275,1749214250159,-2253.61,0.00021369,2]
[364709276,1749214250169,-440.0,0.00021369,2]
[364709277,1749214250178,-440.0,0.00021369,2]
[364709278,1749214250189,-440.0,0.00021369,2]
[364709279,1749214250198,-440.0,0.00021369,2]
[364709280,1749214250209,-440.0,0.00021369,2]
[364709281,1749214250335,-561.53,0.00021369,2]
[364709282,1749214250345,-988.31,0.00021369,2]
[364709283,1749214250355,-1039.65,0.00021369,2]
[364709284,1749214250364,-440.0,0.00021369,2]
[364709285,1749214250373,-360.0,0.00021369,2]
[364709286,1749214250382,-440.0,0.00021369,2]
[364709287,1749214250391,-440.0,0.00021369,2]
[364709288,1749214250400,-5859.32,0.00021369,2]
[364709289,1749214250409,-657.96,0.00021369,2]
[364709290,1749214250418,-440.0,0.00021369,2]
[364709291,1749214250428,-440.0,0.00021369,2]
[364709292,1749214250437,-863.5,0.00021369,2]
[364709293,1749214250446,-440.0,0.00021369,2]
[364709294,1749214250455,-440.0,0.00021369,2]
[364709295,1749214250465,-440.0,0.00021369,2]
[364709296,1749214250474,-1062.11,0.00021369,2]
[364709297,1749214250483,-911.46,0.00021369,2]
[364709298,1749214250492,-440.0,0.00021369,2]
[364709299,1749214250501,-966.81,0.00021369,2]
[364709300,1749214250510,-440.0,0.00021369,2]
[364709301,1749214250521,-440.0,0.00021369,2]
[364709302,1749214250531,-440.0,0.00021369,2]
[364709303,1749214250540,-4387.44,0.00021369,2]
[364709304,1749214250550,-197.5187732,0.00021369,2]
[364709305,1749214250559,-440.0,0.00021369,2]
[364709306,1749214250570,-440.0,0.00021369,2]
[364709307,1749214250579,-440.0,0.00021369,2]
[364709308,1749214250589,-440.0,0.00021369,2]
[364709309,1749214250599,-1842.31,0.00021369,2]
[364709310,1749214250609,-500.0,0.00021388,2]
[364709311,1749214250619,-341.58993269,0.00021388,2]
[364709312,1749214250628,-500.0,0.00021388,2]
[364709313,1749214250637,-501.60077423,0.00021388,2]
[364709314,1749214250647,-503.53306171,0.00021388,2]
[364709315,1749214250656,-500.0,0.00021388,2]
[364709316,1749214250665,-500.0,0.00021388,2]
[364709317,1749214250674,-501.91881571,0.00021388,2]
[364709318,1749214250684,-503.096271,0.00021388,2]
[364709319,1749214250693,-503.32444131,0.00021388,2]
[364709320,1749214250702,-272.39092851,0.00021388,2]
[364709321,1749214250711,-500.0,0.00021388,2]
[364709322,1749214250720,-500.0,0.00021388,2]
[364709323,1749214250730,-501.03912607,0.00021388,2]
[364709324,1749214250739,-525.97332346,0.00021388,2]
[364709325,1749214250748,-500.0,0.00021388,2]
[364709326,1749214250757,-500.0,0.00021388,2]
[364709327,1749214250766,-503.03399779,0.00021388,2]
[364709328,1749214250776,-500.0,0.00021388,2]
[364709329,1749214250785,-500.0,0.00021388,2]
[364709330,1749214250795,-500.0,0.00021388,2]
[364709331,1749214250804,-500.42355388,0.00021388,2]
[364709332,1749214250813,-500.0,0.00021388,2]
[364709333,1749214250823,-151.0,0.000214,4]
[364709334,1749214250833,-500.0,0.00021444,2]
[364709335,1749214250843,-1676.48981906,0.00021452,5]
[364709336,1749214250852,-2383.27191805,0.00021526,2]
[364709337,1749214250862,-1676.48981906,0.0002159,5]
[364709338,1749214250871,-500.17720857,0.00021622,2]
[364709339,1749214250881,-642.58741506,0.00021622,2]
[364709340,1749214250890,-621.44476242,0.00021622,2]
[364709341,1749214250900,-500.0,0.00021622,2]
[364709342,1749214250909,-500.0,0.00021622,2]
[364709343,1749214250919,-500.0,0.00021622,2]
[364709344,1749214250928,-587.0,0.00021624,2]
[364709345,1749214250938,-675571.09779,0.00021642,2]
[364709346,1749214250947,-440.0,0.00021643,2]
[364709347,1749214250957,-440.0,0.00021643,2]
[364709348,1749214250966,-350.0,0.00021643,2]
[364709349,1749214250976,-443.77,0.00021643,2]
[364709350,1749214250987,-440.0,0.00021643,2]
[364709351,1749214250997,-440.0,0.00021643,2]
[364709352,1749214251007,-440.0,0.00021643,2]
[364709353,1749214251016,-440.0,0.00021643,2]
[364709354,1749214251026,-440.0,0.00021643,2]
[364709355,1749214251035,-340.0,0.00021643,2]
[364709356,1749214251045,-457.32,0.00021643,2]
[364709357,1749214251055,-165.9063081,0.00021643,2]
[364709358,1749214251064,-440.0,0.00021643,2]
[364709359,1749214251074,-440.0,0.00021643,2]
[364709360,1749214251084,-1619.82,0.00021643,2]
[364709361,1749214251094,-1008.18,0.00021643,2]
[364709362,1749214251103,-2671.63,0.00021643,2]
[364709363,1749214251113,-1751.18,0.00021643,2]
[364709364,1749214251123,-583.76,0.00021643,2]
[364709365,1749214251132,-440.0,0.00021643,2]
[364709366,1749214251142,-700.1,0.00021643,2]
[364709367,1749214251151,-605.44,0.00021643,2]
[364709368,1749214251161,-2910.28,0.00021643,2]
[364709369,1749214251171,-2253.61,0.00021643,2]
[364709370,1749214251180,-440.0,0.00021643,2]
[364709371,1749214251189,-440.0,0.00021643,2]
[364709372,1749214251198,-440.0,0.00021643,2]
[364709373,1749214251208,-440.0,0.00021643,2]
[364709374,1749214251217,-440.0,0.00021643,2]
[364709375,1749214251227,-561.53,0.00021643,2]
[364709376,1749214251236,-988.31,0.00021643,2]
[364709377,1749214251247,-1039.65,0.00021643,2]
[364709378,1749214251256,-440.0,0.00021643,2]
[364709379,1749214251266,-440.0,0.00021643,2]
[364709380,1749214251275,-440.0,0.00021643,2]
[364709381,1749214251285,-5859.32,0.00021643,2]
[364709382,1749214251294,-657.96,0.00021643,2]
[364709383,1749214251304,-440.0,0.00021643,2]
[364709384,1749214251313,-440.0,0.00021643,2]
[364709385,1749214251324,-863.5,0.00021643,2]
[364709386,1749214251334,-440.0,0.00021643,2]
[364709387,1749214251344,-220.33867229,0.00021643,2]
[364709388,1749214251354,-440.0,0.00021643,2]
[364709389,1749214251363,-1062.11,0.00021643,2]
[364709390,1749214251372,-911.46,0.00021643,2]
[364709391,1749214251382,-326.28537315,0.00021643,2]
[364709392,1749214251392,-966.81,0.00021643,2]
[364709393,1749214251401,-440.0,0.00021643,2]
[364709394,1749214251410,-440.0,0.00021643,2]
[364709395,1749214251419,-440.0,0.00021643,2]
[364709396,1749214251428,-4387.44,0.00021643,2]
[364709397,1749214251438,-440.0,0.00021643,2]
[364709398,1749214251447,-440.0,0.00021643,2]
[364709399,1749214251457,-440.0,0.00021643,2]
[364709400,1749214251466,-440.0,0.00021643,2]
[364709401,1749214251475,-1842.31,0.00021643,2]
[364709402,1749214251485,-900.0,0.00021679,2]
[364709403,1749214251495,-151.0,0.000217,3]
[364709404,1749214251505,-21231.08,0.000217,2]
[364709405,1749214251515,-1676.48981906,0.00021728,5]
[364709406,1749214251524,-1484.81,0.000218,2]
[364709407,1749214251534,-837.47,0.000218,2]
[364709408,1749214251543,-167.2222613,0.00021817,2]
[364709409,1749214251553,-1676.48981906,0.00021866,6]
[364709410,1749214251562,-501.85277261,0.0002189,2]
[364709411,1749214251574,-1000.0,0.00021904,2]
[364709412,1749214251584,-600.0,0.00021904,2]
[364709413,1749214251593,-1000.0,0.00021904,2]
[364709414,1749214251603,-1000.0,0.00021904,2]
[364709415,1749214251612,-503.86131124,0.00021904,2]
[364709416,1749214251622,-440.0,0.00021917,2]
[364709417,1749214251631,-440.0,0.00021917,2]
[364709418,1749214251640,-443.77,0.00021917,2]
[364709419,1749214251650,-440.0,0.00021917,2]
[364709420,1749214251659,-440.0,0.00021917,2]
[364709421,1749214251669,-440.0,0.00021917,2]
[364709422,1749214251678,-440.0,0.00021917,2]
[364709423,1749214251688,-440.0,0.00021917,2]
[364709424,1749214251698,-457.32,0.00021917,2]
[364709425,1749214251708,-440.0,0.00021917,2]
[364709426,1749214251717,-440.0,0.00021917,2]
[364709427,1749214251727,-1619.82,0.00021917,2]
[364709428,1749214251736,-1008.18,0.00021917,2]
[364709429,1749214251755,-2671.63,0.00021917,2]
[364709430,1749214251767,-1751.18,0.00021917,2]
[364709431,1749214251777,-583.76,0.00021917,2]
[364709432,1749214251787,-330.0,0.00021917,2]
[364709433,1749214251798,-700.1,0.00021917,2]
[364709434,1749214251807,-605.44,0.00021917,2]
[364709435,1749214251817,-2910.28,0.00021917,2]
[364709436,1749214251829,-2253.61,0.00021917,2]
[364709437,1749214251839,-556.2380705,0.00021917,2]
[364709438,1749214251849,-440.0,0.00021917,2]
[364709439,1749214251860,-317.86106119,0.00021917,2]
[364709440,1749214251870,-440.0,0.00021917,2]
[364709441,1749214251880,-440.0,0.00021917,2]
[364709442,1749214251890,-561.53,0.00021917,2]
[364709443,1749214251900,-988.31,0.00021917,2]
[364709444,1749214251910,-1039.65,0.00021917,2]
[364709445,1749214251920,-440.0,0.00021917,2]
[364709446,1749214251930,-440.0,0.00021917,2]
[364709447,1749214251940,-440.0,0.00021917,2]
[364709448,1749214251950,-5859.32,0.00021917,2]
[364709449,1749214251960,-657.96,0.00021917,2]
[364709450,1749214251970,-505.23537389,0.00021917,2]
[364709451,1749214251980,-440.0,0.00021917,2]
[364709452,1749214251994,-440.0,0.00021917,2]
[364709453,1749214252005,-863.5,0.00021917,2]
[364709454,1749214252015,-440.0,0.00021917,2]
[364709455,1749214252024,-440.0,0.00021917,2]
[364709456,1749214252035,-1062.11,0.00021917,2]
[364709457,1749214252045,-911.46,0.00021917,2]
[364709458,1749214252055,-966.81,0.00021917,2]
[364709459,1749214252066,-440.0,0.00021917,2]
[364709460,1749214252078,-440.0,0.00021917,2]
[364709461,1749214252089,-327.08551543,0.00021917,2]
[364709462,1749214252098,-4387.44,0.00021917,2]
[364709463,1749214252108,-440.0,0.00021917,2]
[364709464,1749214252118,-440.0,0.00021917,2]
[364709465,1749214252128,-440.0,0.00021917,2]
[364709466,1749214252138,-440.0,0.00021917,2]
[364709467,1749214252147,-1842.31,0.00021917,2]
[364709468,1749214252158,-1002.5792692,0.00021935,2]
[364709469,1749214252168,-500.0,0.00021935,2]
[364709470,1749214252178,-507.37303008,0.00021935,2]
[364709471,1749214252189,-1005.57380754,0.00021935,2]
[364709472,1749214252199,-500.0,0.00021935,2]
[364709473,1749214252209,-501.24933724,0.00021935,2]
[364709474,1749214252219,-500.0,0.00021935,2]
[364709475,1749214252231,-347.47889072,0.00021935,2]
[364709476,1749214252241,-502.26417517,0.00021935,2]
[364709477,1749214252251,-1000.0,0.00021992,2]
[364709478,1749214252260,-1395.18669242,0.00022,2]
[364709479,1749214252270,-315.04936747,0.00022,7]
[364709480,1749214252279,-225.0,0.00022,2]
[364709481,1749214252289,-1676.48981906,0.00022003,6]
[364709482,1749214252299,-151.0,0.00022066,2]
[364709483,1749214252309,-207.4,0.00022066,2]
[364709484,1749214252318,-151.0,0.00022066,2]
[364709485,1749214252329,-1688.0,0.00022066,2]
[364709486,1749214252338,-151.47158686,0.00022066,2]
[364709487,1749214252348,-500.0,0.00022066,2]
[364709488,1749214252357,-500.0,0.00022066,2]
[364709489,1749214252371,-500.0,0.00022066,2]
[364709490,1749214252385,-500.0,0.00022066,2]
[364709491,1749214252395,-500.0,0.00022066,2]
[364709492,1749214252404,-500.0,0.00022066,2]
[364709493,1749214252414,-500.0,0.00022066,2]
[364709494,1749214252424,-500.0,0.00022066,2]
[364709495,1749214252434,-500.0,0.00022066,2]
[364709496,1749214252444,-5000.0,0.00022066,2]
[364709497,1749214252454,-500.0,0.00022066,2]
[364709498,1749214252464,-500.0,0.00022066,2]
[364709499,1749214252474,-500.0,0.00022066,2]
[364709500,1749214252484,-500.0,0.00022066,2]
[364709501,1749214252494,-500.0,0.00022066,2]
[364709502,1749214252504,-500.0,0.00022066,2]
[364709503,1749214252514,-500.0,0.00022066,2]
[364709504,1749214252524,-500.0,0.00022066,2]
[364709505,1749214252533,-500.0,0.00022066,2]
[364709506,1749214252543,-500.0,0.00022066,2]
[364709507,1749214252553,-500.0,0.00022066,2]
[364709508,1749214252563,-500.0,0.00022066,2]
[364709509,1749214252573,-500.0,0.00022066,2]
[364709510,1749214252583,-500.0,0.00022066,2]
[364709511,1749214252595,-500.0,0.00022066,2]
[364709512,1749214252605,-500.0,0.00022066,2]
[364709513,1749214252617,-500.0,0.00022066,2]
[364709514,1749214252626,-500.0,0.00022066,2]
[364709515,1749214252636,-500.0,0.00022066,2]
[364709516,1749214252646,-500.0,0.00022066,2]
[364709517,1749214252656,-500.0,0.00022066,2]
[364709518,1749214252665,-206.97749713,0.00022066,2]
[364709519,1749214252675,-151.0,0.000221,9]
[364709520,1749214252685,-1750.456,0.00022121,2]
[364709521,1749214252694,-1676.48981906,0.00022141,6]
[364709522,1749214252704,-1000.0,0.0002217,2]
[364709523,1749214252715,-1000.0,0.0002217,2]
[364709524,1749214252726,-1815.222872,0.00022176,2]
[364709525,1749214252736,-440.0,0.00022191,2]
[364709526,1749214252746,-440.0,0.00022191,2]
[364709527,1749214252756,-443.77,0.00022191,2]
[364709528,1749214252765,-440.0,0.00022191,2]
[364709529,1749214252775,-440.0,0.00022191,2]
[364709530,1749214252785,-440.0,0.00022191,2]
[364709531,1749214252796,-440.0,0.00022191,2]
[364709532,1749214252806,-440.0,0.00022191,2]
[364709533,1749214252815,-457.32,0.00022191,2]
[364709534,1749214252828,-584.17352897,0.00022191,2]
[364709535,1749214252838,-440.0,0.00022191,2]
[364709536,1749214252850,-1619.82,0.00022191,2]
[364709537,1749214252860,-1008.18,0.00022191,2]
[364709538,1749214252869,-2671.63,0.00022191,2]
[364709539,1749214252879,-1751.18,0.00022191,2]
[364709540,1749214252890,-583.76,0.00022191,2]
[364709541,1749214252900,-700.1,0.00022191,2]
[364709542,1749214252910,-605.44,0.00022191,2]
[364709543,1749214252920,-2910.28,0.00022191,2]
[364709544,1749214252930,-2253.61,0.00022191,2]
[364709545,1749214252940,-440.0,0.00022191,2]
[364709546,1749214252950,-440.0,0.00022191,2]
[364709547,1749214252960,-440.0,0.00022191,2]
[364709548,1749214252970,-561.53,0.00022191,2]
[364709549,1749214252981,-988.31,0.00022191,2]
[364709550,1749214252993,-1039.65,0.00022191,2]
[364709551,1749214253003,-440.0,0.00022191,2]
[364709552,1749214253012,-440.0,0.00022191,2]
[364709553,1749214253022,-440.0,0.00022191,2]
[364709554,1749214253032,-5859.32,0.00022191,2]
[364709555,1749214253042,-657.96,0.00022191,2]
[364709556,1749214253052,-440.0,0.00022191,2]
[364709557,1749214253062,-440.0,0.00022191,2]
[364709558,1749214253072,-863.5,0.00022191,2]
[364709559,1749214253083,-440.0,0.00022191,2]
[364709560,1749214253092,-440.0,0.00022191,2]
[364709561,1749214253102,-1062.11,0.00022191,2]
[364709562,1749214253111,-911.46,0.00022191,2]
[364709563,1749214253121,-966.81,0.00022191,2]
[364709564,1749214253131,-440.0,0.00022191,2]
[364709565,1749214253140,-440.0,0.00022191,2]
[364709566,1749214253150,-4387.44,0.00022191,2]
[364709567,1749214253160,-440.0,0.00022191,2]
[364709568,1749214253170,-440.0,0.00022191,2]
[364709569,1749214253180,-440.0,0.00022191,2]
[364709570,1749214253190,-440.0,0.00022191,2]
[364709571,1749214253200,-1842.31,0.00022191,2]
[364709572,1749214253210,-378.64635791,0.000222,69]
[364709573,1749214253219,-378.64635791,0.000222,69]
[364709574,1749214253379,-378.64635791,0.000222,69]
[364709575,1749214253389,-233.34,0.00022215,2]
[364709576,1749214253398,-1882.38611826,0.00022231,2]
[364709577,1749214253408,-1676.48981906,0.00022279,6]
[364709578,1749214253417,-1952.03440464,0.00022286,2]
[364709579,1749214253427,-2024.25967761,0.00022341,2]
[364709580,1749214253436,-610.47496051,0.0002238,2]
[364709581,1749214253445,-2099.15728568,0.00022396,2]
[364709582,1749214253455,-151.0,0.000224,5]
[364709583,1749214253464,-1676.48981906,0.00022417,7]
[364709584,1749214253474,-2176.82610525,0.00022451,2]
[364709585,1749214253483,-1500.0,0.00022452,2]
[364709586,1749214253493,-931.56778729,0.00022452,2]
[364709587,1749214253502,-295.87571884,0.00022465,2]
[364709588,1749214253512,-443.77,0.00022465,2]
[364709589,1749214253521,-440.0,0.00022465,2]
[364709590,1749214253530,-440.0,0.00022465,2]
[364709591,1749214253539,-440.0,0.00022465,2]
[364709592,1749214253549,-440.0,0.00022465,2]
[364709593,1749214253558,-337.27521055,0.00022465,2]
[364709594,1749214253567,-457.32,0.00022465,2]
[364709595,1749214253578,-440.0,0.00022465,2]
[364709596,1749214253587,-1619.82,0.00022465,2]
[364709597,1749214253596,-1008.18,0.00022465,2]
[364709598,1749214253607,-2671.63,0.00022465,2]
[364709599,1749214253617,-1751.18,0.00022465,2]
[364709600,1749214253626,-583.76,0.00022465,2]
[364709601,1749214253636,-700.1,0.00022465,2]
[364709602,1749214253645,-605.44,0.00022465,2]
[364709603,1749214253655,-2910.28,0.00022465,2]
[364709604,1749214253666,-2253.61,0.00022465,2]
[364709605,1749214253675,-440.0,0.00022465,2]
[364709606,1749214253687,-440.0,0.00022465,2]
[364709607,1749214253698,-440.0,0.00022465,2]
[364709608,1749214253708,-561.53,0.00022465,2]
[364709609,1749214253718,-988.31,0.00022465,2]
[364709610,1749214253728,-1039.65,0.00022465,2]
[364709611,1749214253738,-310.0,0.00022465,2]
[364709612,1749214253747,-310.0,0.00022465,2]
[364709613,1749214253757,-310.0,0.00022465,2]
[364709614,1749214253767,-5859.32,0.00022465,2]
[364709615,1749214253776,-657.96,0.00022465,2]
[364709616,1749214253786,-440.0,0.00022465,2]
[364709617,1749214253795,-311.50025,0.00022465,2]
[364709618,1749214253805,-863.5,0.00022465,2]
[364709619,1749214253815,-440.0,0.00022465,2]
[364709620,1749214253825,-309.05555512,0.00022465,2]
[364709621,1749214253835,-1062.11,0.00022465,2]